Cogmind - Beta 13 @@@ ROGUE MODE // 2024.08.05 @ 21:15:15 Player: polar Result: Self-destructed Performance ------------- Evolutions (6) 3000 Regions Visited (25) 5000 Robots Destroyed (287) 1435 Value Destroyed (12781) 12781 Prototype IDs (40) 800 Alien Tech Used (0) 0 Bonus (12967) 12967 TOTAL SCORE: 35983 Bonus ------- High Alert Combat Kills 2008 Follower Combat Kills 3159 Entered Garrisons 1600 Used RIF Installer 5000 Network Hubs Disabled 200 Aligned with FarCom 300 Built Enhanced Grunts 300 A7 Reached Mainframe 300 Met R17 at Cetus 500 Friendly Fire -400 Cogmind --------- Core Integrity 91/1150 Matter 1/300 Energy 58/350 System Corruption 10% Temperature Cool (0) Movement Core (2950) Ox58 Location -4/Factory Parts ------- > --- POWER (1) -------- Reinforced Quantum Reactor > --- PROPULSION (4) --- (None) > --- UTILITY (12) ----- Cargo Storage Unit Relay Coupler [NC] (11) Relay Coupler [Swarmer] (39) Relay Coupler [Sentry] (5) > --- WEAPON (2) ------- Hypervelocity Railgun > --- INVENTORY (30) --- Biometal Heavy Treads Advanced Power Amplifier Advanced Transmission Jammer Remote Force Field Relay Coupler [NC] (31) Relay Coupler [NC] (31) Relay Coupler [NC] (32) Relay Coupler [NC] (35) Relay Coupler [NC] (29) Relay Coupler [Swarmer] (49) Relay Coupler [Grunt] (32) Relay Coupler [Grunt] (30) Relay Coupler [Grunt] (27) Relay Coupler [Duelist] (33) Relay Coupler [Sentry] (27) Relay Coupler [Demolisher] (21) Relay Coupler [Heavy] (15) Relay Coupler [Heavy] (14) Advanced System Restoration Module Thief Drone Bay (2/3) Improved Remote Datajack Improved Remote Datajack Plasma Cutter Peak State ------------ > --- POWER ------------ Reinforced Quantum Reactor > --- PROPULSION ------- Biometal Heavy Treads Advanced Heavy Siege Treads > --- UTILITY ---------- Advanced Heat Sink Cargo Storage Unit Advanced Transmission Jammer Centrium Medium Armor Plating Centrium Medium Armor Plating Improved Force Field Relay Coupler [NC] Relay Coupler [Swarmer] Relay Coupler [Brawler] Relay Coupler [Sentry] Relay Coupler [Hunter] > --- WEAPON ----------- Enhanced Quantum Rifle Enhanced Nova Cannon > --- INVENTORY -------- Centrium Heavy Treads Advanced Heavy Siege Treads High-capacity Storage Unit Improved Transmission Jammer Advanced Cloaking Device Remote Force Field Improved Hacking Suite Relay Coupler [NC] Relay Coupler [NC] Relay Coupler [NC] Relay Coupler [Heavy] Thief Drone Bay Enhanced Nova Cannon Enhanced Nova Cannon Hypervelocity Railgun Hypervelocity Railgun Hypervelocity Railgun Hypervelocity Railgun Long-range Missile Launcher Improved Remote Datajack Improved Remote Datajack Plasma Cutter [Rating: 132] Favorites ----------- Power Reinforced Quantum Reactor Engine Heavy Ion Engine Power Core Light Nuclear Core Reactor Reinforced Quantum Reactor Propulsion Light Treads Treads Light Treads Leg Carbon-fiber Leg Wheel Wheel Flight Unit Improved VTOL Module Utility Relay Coupler [NC] Device Improved Transmission Jammer Storage Huge Storage Unit Processor Advanced Targeting Computer Hackware Relay Coupler [NC] Protection Centrium Medium Armor Plating Weapon Enhanced Nova Cannon Energy Gun Enhanced Quantum Rifle Energy Cannon Enhanced Nova Cannon Ballistic Gun Light Assault Rifle Ballistic Cannon Advanced Assault Cannon Launcher Rocket Launcher Special Weapon Improved Remote Datajack Impact Weapon Makeshift Hammer Slashing Weapon Katana Piercing Weapon Spear Special Melee Weapon Improved Datajack Build | -11 -10 -10 -10 -9 -8 -8 -8 -8 -7 -7 -7 -7 -6 -6 -5 -5 -5 -5 -5 -5 -5 -5 -4 -4 -4 ------- Run | Yrd Mat Min Exi Min Mat Gar Mat Gar Fac Gar Fac Gar Fac Gar Fac Gar Fac Ext Cet Arc Hub Gar Fac Gar Fac Slots Evolved 12 | . . . . . 4 . . . 2 . . . 2 . 2 . . . . . . . 2 . . Power . | . . . . . . . . . . . . . . . . . . . . . . . . . . Propulsion 2 | . . . . . 1 . . . 1 . . . . . . . . . . . . . . . . Utility 10 | . . . . . 3 . . . 1 . . . 2 . 2 . . . . . . . 2 . . Weapon . | . . . . . . . . . . . . . . . . . . . . . . . . . . Parts Attached 453 | 7 19 9 4 2 15 24 34 25 3 22 46 21 21 17 4 47 6 16 16 2 18 28 12 19 16 Power 20 | 1 2 1 . 2 1 . 1 2 . 1 3 2 2 . . 1 . . . . . 1 . . . Engine 10 | 1 2 . . 1 1 . 1 1 . 1 1 . 1 . . . . . . . . . . . . Core 8 | . . 1 . 1 . . . 1 . . 2 2 1 . . . . . . . . . . . . Reactor 2 | . . . . . . . . . . . . . . . . 1 . . . . . 1 . . . Propulsion 79 | 2 6 2 1 . 6 7 8 5 1 3 13 1 2 3 . 10 . . 6 . . 1 1 1 . Treads 58 | 2 6 . . . 1 6 8 5 1 3 6 1 1 2 . 7 . . 6 . . 1 1 1 . Leg 2 | . . . . . . . . . . . . . . 1 . 1 . . . . . . . . . Wheel 18 | . . 2 1 . 4 1 . . . . 7 . 1 . . 2 . . . . . . . . . Hover . | . . . . . . . . . . . . . . . . . . . . . . . . . . Flight 1 | . . . . . 1 . . . . . . . . . . . . . . . . . . . . Utility 144 | 2 1 2 2 . 4 8 15 5 1 7 13 9 7 3 2 12 3 5 3 1 3 15 7 8 6 Device 66 | 1 1 1 . . 1 4 9 4 . 2 4 3 3 1 1 5 1 3 2 . 1 9 2 2 6 Storage 10 | 1 . . 2 . . 1 1 . . . 1 . . . 1 . . . . . . 3 . . . Processor 5 | . . . . . . 2 . . . 1 1 . . . . 1 . . . . . . . . . Hackware 32 | . . . . . . . 2 1 1 3 2 4 2 2 . 3 . . . . 1 3 3 5 . Protection 31 | . . 1 . . 3 1 3 . . 1 5 2 2 . . 3 2 2 1 1 1 . 2 1 . Artifact . | . . . . . . . . . . . . . . . . . . . . . . . . . . Weapon 210 | 2 10 4 1 . 4 9 10 13 1 11 17 9 10 11 2 24 3 11 7 1 15 11 4 10 10 Energy Gun 24 | . . . . . . . 5 3 . . . . . . . 3 1 3 2 1 3 1 1 . 1 Energy Cannon 32 | . . . 1 . . . . 1 . 3 3 . 1 . . 4 . 2 3 . 4 3 1 2 4 Ballistic Gun 32 | 2 7 2 . . 1 . . . . . 3 2 3 . . 7 . . 1 . . . . 2 2 Ballistic Cannon 5 | . . . . . . . . . . . . . . 3 . 1 . . . . . . . 1 . Launcher 29 | . 3 2 . . 1 4 3 3 . . 2 2 2 . 1 3 . . . . 1 . 1 . 1 Special Weapon 45 | . . . . . . . . 4 . 2 1 2 1 2 . 2 2 6 1 . 7 7 1 5 2 Impact Weapon 27 | . . . . . 1 4 . 1 . 5 6 3 1 2 1 3 . . . . . . . . . Slashing Weapon 3 | . . . . . 1 1 1 . . . . . . . . . . . . . . . . . . Piercing Weapon 7 | . . . . . . . . . . . . . 2 4 . 1 . . . . . . . . . Special Melee Weapon 6 | . . . . . . . 1 1 1 1 2 . . . . . . . . . . . . . . Unidentified Prototypes 9 | . . 1 . . 2 . . . . . . . 1 . . . . . 4 . . . . 1 . Parts Lost 91 | . . 3 2 . 1 6 3 6 . 5 13 5 7 2 . 14 . . . . 1 1 2 4 16 Power 9 | . . . 1 . . . 1 2 . 1 1 . 1 . . 1 . . . . . 1 . . . Propulsion 28 | . . 2 1 . 1 3 . 1 . 3 7 . 2 . . 5 . . . . . . . 1 2 Utility 36 | . . . . . . 3 1 . . 1 4 4 2 2 . 6 . . . . 1 . 2 3 7 Weapon 18 | . . 1 . . . . 1 3 . . 1 1 2 . . 2 . . . . . . . . 7 Highest Loss Streak 16 | . . 2 2 . 1 3 1 5 . 3 3 3 7 2 . 6 . . . . 1 1 1 1 16 To Critical Strikes 2 | . . . . . . . . . . 1 . . . . . . . . . . . . . . 1 Average Slot Usage (%) 87 | . 96 99 97 79 92 96 89 89 87 94 81 76 80 89 88 88 88 88 87 88 87 86 83 82 79 Engine 3 | . 13 12 . 1 3 9 9 5 7 6 5 . 1 6 5 1 . . . . . . . . . Core 1 | . . 1 13 7 5 . . 3 . . . 7 4 . . . . . . . . . . . . Reactor 2 | . . . . . . . . . . . . . . . . 2 5 5 5 5 5 4 5 5 5 Treads 13 | . 27 10 . . . 9 17 19 30 29 15 15 10 6 11 10 11 11 11 11 11 11 10 9 9 Wheel 3 | . . 16 27 28 26 16 . . . . 6 . 1 6 5 2 . . . . . . . . . Device 12 | . 14 9 14 14 11 5 16 17 7 4 5 7 12 19 20 17 8 15 17 11 11 15 14 13 16 Storage 6 | . 14 14 14 14 9 9 9 9 7 7 7 7 4 . 2 5 5 5 5 5 5 5 5 5 5 Processor 6 | . . . . . . 13 18 18 15 15 7 1 . . . 3 5 5 5 5 5 4 . . . Hackware 16 | . . . . . . . 1 . 7 14 13 14 18 24 23 25 29 28 23 23 22 23 28 28 30 Protection 5 | . . 4 . . 21 13 . . . . 3 6 12 7 5 2 7 1 5 11 11 6 7 7 1 Energy Gun 2 | . . . . . . . 14 10 . . . . . . . 2 . 2 4 4 2 . 3 4 . Energy Cannon 1 | . . . 1 14 3 . . . . . . . . . . 2 5 4 4 5 3 4 4 2 1 Ballistic Gun 1 | . 23 21 12 . 5 . . . . . 3 3 3 2 . 2 . . . . . . . . . Special Weapon 1 | . . . . . . . . 2 4 4 . 2 1 . . . 4 2 . . 3 4 2 1 3 Impact Weapon 2 | . . . . . 4 8 1 . . 6 5 5 1 1 3 . . . . . . . . . . Naked Turns . | . . . . . . . . . . . . . . . . . . . . . . . . . . Heaviest Build 217 | 13 15 19 94 47 68 95 121 108 90 126 135 115 122 30 77 106 104 98 102 105 105 208 217 210 196 Greatest Support 160 | 40 40 40 20 20 36 97 97 97 89 89 140 140 140 40 40 155 155 155 160 155 155 155 155 160 160 Greatest Overweight (x) 28 | . . 4 4 2 2 3 1 1 1 1 28 . 1 1 2 3 . . 1 . . 1 1 1 1 Average Overweight (x) . | . . . 1 2 1 1 . . . . 2 . . . 1 1 . . . . . . 1 1 1 Largest Inventory Capacity 30 | 8 8 8 25 15 15 25 25 25 25 25 25 25 25 5 20 20 20 20 20 20 20 30 30 30 30 Average Capacity 21 | 6 8 8 18 15 15 15 25 25 25 25 25 25 18 5 13 20 20 20 20 20 20 21 30 30 30 Most Carried 30 | 4 7 8 15 15 15 25 25 25 25 25 25 25 25 5 12 20 20 20 20 20 20 24 26 30 30 Average Carried 20 | 2 5 7 10 13 14 14 24 24 23 24 23 24 17 4 6 18 19 19 19 20 19 20 23 28 29 Final Capacity 30 | 8 8 8 15 15 15 25 25 25 25 25 25 25 5 5 20 20 20 20 20 20 20 30 30 30 30 Final Carried 29 | 4 7 8 12 14 15 25 25 25 24 25 25 25 5 5 12 20 20 20 20 20 20 24 24 29 24 Class Distribution -------------------- 43% | Mutant 34% | Botlord-Mutant 16% | Bothacker-Mutant 5% | Commander-Mutant Dominant Class ---------------- Mutant | -10/Materials Mutant | -10/Mines Mutant | -10/Exiles Mutant | -9/Mines Mutant | -8/Materials Mutant | -8/Garrison Mutant | -8/Materials Mutant | -8/Garrison Bothacker-Mutant | -7/Factory Bothacker-Mutant | -7/Garrison Bothacker-Mutant | -7/Factory Mutant | -7/Garrison Mutant | -6/Factory Mutant | -6/Garrison Commander-Mutant | -5/Factory Mutant | -5/Garrison Botlord-Mutant | -5/Factory Botlord-Mutant | -5/Extension Commander-Mutant | -5/Cetus Botlord-Mutant | -5/Archives Botlord-Mutant | -5/Hub_04(d) Botlord-Mutant | -5/Garrison Botlord-Mutant | -4/Factory Botlord-Mutant | -4/Garrison Botlord-Mutant | -4/Factory Resources | -11 -10 -10 -10 -9 -8 -8 -8 -8 -7 -7 -7 -7 -6 -6 -5 -5 -5 -5 -5 -5 -5 -5 -4 -4 -4 ----------- Run | Yrd Mat Min Exi Min Mat Gar Mat Gar Fac Gar Fac Gar Fac Gar Fac Gar Fac Ext Cet Arc Hub Gar Fac Gar Fac Matter Collected 7849 | 188 183 306 110 40 188 296 462 323 . 323 690 778 148 453 94 972 60 348 150 65 241 649 284 435 63 Remotely . | . . . . . . . . . . . . . . . . . . . . . . . . . . Salvage Created 11347 | 22 203 58 109 . 528 509 1290 574 . 525 1005 348 434 242 29 1227 169 897 173 . 561 714 778 556 396 Parts 488 | 4 25 7 11 . 20 29 93 25 . 18 25 10 19 8 1 38 6 30 8 . 22 24 28 22 15 Haulers Intercepted 2 | . . . . . 1 . . . . . 1 . . . . . . . . . . . . . . Recyclers Shooed 3 | . . . . . . . . . . . 3 . . . . . . . . . . . . . . Parts Field Recycled . | . . . . . . . . . . . . . . . . . . . . . . . . . . Retrieved Matter . | . . . . . . . . . . . . . . . . . . . . . . . . . . Parts Self-Destructed . | . . . . . . . . . . . . . . . . . . . . . . . . . . Prevented . | . . . . . . . . . . . . . . . . . . . . . . . . . . Kills | -11 -10 -10 -10 -9 -8 -8 -8 -8 -7 -7 -7 -7 -6 -6 -5 -5 -5 -5 -5 -5 -5 -5 -4 -4 -4 ------- Run | Yrd Mat Min Exi Min Mat Gar Mat Gar Fac Gar Fac Gar Fac Gar Fac Gar Fac Ext Cet Arc Hub Gar Fac Gar Fac Combat Hostiles Destroyed 235 | . 9 6 7 . 10 16 26 20 . 15 15 13 9 6 2 24 1 12 2 . 5 10 11 8 8 Melee 18 | . . . . . 2 6 3 . . 1 2 1 1 2 . . . . . . . . . . . Guns 60 | . . 3 . . . . 15 9 . . 1 1 2 . . 13 . 7 . . 1 1 4 3 . Cannons 46 | . . . 3 . 2 . . . . 4 . . . 4 1 3 1 4 1 . 3 9 5 3 3 AOE 86 | . 9 3 4 . 3 8 5 8 . 9 6 11 6 . 1 7 . . . . . . 2 . 4 Classes Destroyed 22 | 1 6 2 1 . 3 1 1 1 . 1 1 . 1 1 . 1 . . . . . . . . 1 Worker 16 | . 1 1 . . 1 . . . . . 8 . . . . . . . . . 2 . 1 . 2 Builder 12 | . 2 . . . . . 4 . . . 4 . . . . . . . . . 1 . . . 1 Tunneler 3 | 1 . . . . 1 . . . . . 1 . . . . . . . . . . . . . . Hauler 2 | . . . . . 1 . . . . . 1 . . . . . . . . . . . . . . Recycler 8 | . . . . . . . . . . . 4 . . . . . 1 . . . 1 . 1 . 1 Mechanic 2 | . 1 . . . . . . . . . . . 1 . . . . . . . . . . . . Operator 3 | . . . . . . . 3 . . . . . . . . . . . . . . . . . . Turret 1 | . . . 1 . . . . . . . . . . . . . . . . . . . . . . Watcher 12 | . 1 . . . 1 . 4 . . . 1 . 1 . . . . 2 1 . . . . . 1 Swarmer 37 | . 3 4 . . . 5 5 8 . 4 3 1 . . 2 . . . . . . . 2 . . Saboteur 1 | . . . . . . . . . . . . . . 1 . . . . . . . . . . . Grunt 93 | . 6 . . . 4 5 15 6 . 4 6 9 7 3 . 13 . 5 . . . 6 4 . . Brawler 12 | . . . . . . 1 1 1 . 2 1 1 . . . 1 . 1 . . . 1 2 . . Duelist 10 | . . . . . . . . 3 . 1 1 . . 1 . . 1 . . . . 2 . 1 . Protector 2 | . . . . . . . . . . . . . 1 . . . . . . . . . . . 1 Sentry 39 | . . . . . 5 4 5 2 . 2 1 2 1 . . 5 . 6 . . 4 . 1 1 . Demolisher 1 | . . 1 . . . . . . . . . . . . . . . . . . . . . . . Specialist 2 | . . . . . . . . . . . . . . . . . . . . . . . . . 2 Hunter 11 | . . . . . 1 1 . . . . 1 . . . . 4 . . . . 1 . . 2 1 Programmer 17 | . . . . . . . . . . 2 2 . . 1 . . . . . . . 1 3 4 4 Behemoth 1 | . . . . . . . . . . . . . . . . 1 . . . . . . . . . Cetus Guard 2 | . . . . . . . . . . . . . . . . . . . 2 . . . . . . Assembled 8 | . . 1 7 . . . . . . . . . . . . . . . . . . . . . . Best Kill Streak 11 | 1 8 3 9 . 4 6 3 5 . 11 10 9 5 1 2 7 2 2 2 . 4 3 5 1 10 Combat Bots Only 11 | . 3 2 7 . 2 6 3 5 . 11 6 9 4 1 2 7 1 2 2 . 1 3 3 1 6 Max Kills in Single Turn 5 | 1 2 2 3 . 2 5 3 4 . 4 3 2 3 1 2 2 1 1 1 . 3 1 2 1 2 Gunslinging 1 | . . . . . . . . . . . . . . . . 1 . . . . . . . . . Exploded 5 | . 2 1 3 . 1 5 3 4 . 4 2 2 3 . 1 2 . . . . . . 1 . 2 Melee 1 | . . . . . 1 1 1 . . 1 1 1 1 1 . . . . . . . . . . . Uniques/NPCs Destroyed 1 | . . . 1 . . . . . . . . . . . . . . . . . . . . . . EX-BIN (-10/Exiles) Combat | -11 -10 -10 -10 -9 -8 -8 -8 -8 -7 -7 -7 -7 -6 -6 -5 -5 -5 -5 -5 -5 -5 -5 -4 -4 -4 -------- Run | Yrd Mat Min Exi Min Mat Gar Mat Gar Fac Gar Fac Gar Fac Gar Fac Gar Fac Ext Cet Arc Hub Gar Fac Gar Fac Hostile Shots Fired 2019 | . 21 22 21 . 41 67 121 112 . 124 145 115 126 13 . 227 8 64 6 . 37 33 82 103 531 Missed 578 | . 9 2 4 . 8 18 29 24 . 45 40 33 42 5 . 52 . 12 1 . 8 5 14 25 202 Damage Taken 23178 | . 186 467 371 . 532 731 1350 1396 . 1076 1880 1350 1496 231 . 2545 192 888 119 . 957 478 1171 1706 4056 Core 3363 | . 17 127 64 . 14 80 189 179 . 77 427 112 395 99 . 266 . 189 . . 49 20 100 116 843 Absorbed by Shields 1113 | . . . . . . 17 . 43 . 9 . . . . . 314 . 93 65 . . 100 218 254 . Reduced by Siege Mode 1455 | . . . . . . . 22 62 . . . . 28 . . 137 8 167 . . 71 . 113 310 537 Redirected to Shielding 264 | . . . . . . . . . . . . . 141 12 . 69 . . . . . . . 42 . Ignored by Resistances 733 | . . . . . . . 186 139 . 75 121 . . . . . . 158 . . . 54 . . . Regen/Repaired (Parts) 932 | . . . . . . . 609 . . 65 . . . . . . . 128 33 . 97 . . . . Core Remaining (%) 32 | 100 . . . 16 . . . 16 . . . 12 . 4 . . . . . . . 47 . . . Volleys Fired 851 | 2 19 16 8 . 13 8 79 52 . 12 39 38 11 14 1 95 11 75 15 3 62 139 53 51 35 Largest 2 | 2 2 2 1 . 2 1 2 2 . 1 1 2 2 2 2 2 2 2 2 1 2 2 2 2 2 Hottest 258 | 40 50 53 100 . 100 33 156 258 . 100 100 56 100 96 91 240 185 185 185 120 185 185 185 185 180 Shots Fired 1212 | 4 38 32 8 . 17 8 145 84 . 12 43 41 13 21 2 149 12 113 25 3 80 145 71 95 51 Gun 578 | 4 27 25 . . 7 . 139 74 . . 28 6 8 . . 91 1 40 10 2 23 2 20 61 10 Cannon 423 | . . . 8 . 6 . . 3 . 12 6 . . 21 1 47 7 49 10 1 40 114 36 29 33 Launcher 93 | . 11 7 . . 4 8 6 7 . . 5 16 4 . 1 11 . . . . 3 . 5 . 5 Special 118 | . . . . . . . . . . . 4 19 1 . . . 4 24 5 . 14 29 10 5 3 Kinetic 238 | 4 27 25 . . 7 . . . . . 28 6 8 21 1 72 . . . . . . . 15 24 Thermal 766 | . . . 8 . 6 . 139 77 . 12 6 . 1 . . 66 8 89 20 3 63 118 56 75 19 Explosive 93 | . 11 7 . . 4 8 6 7 . . 5 16 4 . 1 11 . . . . 3 . 5 . 5 Electromagnetic . | . . . . . . . . . . . . . . . . . . . . . . . . . . Robot Hit Streak 26 | 3 8 6 7 . 3 3 17 12 . 4 8 7 5 5 1 14 21 21 15 3 26 21 22 25 9 Robot Miss Streak 7 | 1 2 2 2 . 2 3 3 2 . 4 4 5 7 1 . 3 1 3 3 1 2 2 3 2 3 Penetration Max 2 | . . . . . . . . . . . . . . . . 2 . . . . . . . 1 . Secondary Targets 3 | . . . . . . . . 1 . . . . . . . 1 . . . . . . . 1 . Max Gunslinging Chain 1 | . . . . . . . . 1 . . . . . . . 1 . . . . . . . 1 . Shots Hit Robots 850 | 3 22 15 3 . 25 29 89 52 2 14 83 33 21 10 1 102 10 84 15 2 46 49 48 63 29 Core Hits 454 | 2 28 16 7 . 7 26 42 23 . 12 22 26 38 7 2 58 3 26 6 1 17 19 25 16 25 Critical Kills 12 | . . . 1 . . . 1 1 . 1 3 . . . . 2 . . . . 1 . . 1 1 Critical Parts Destroyed 23 | . . . . . 2 2 3 . . 1 9 1 . . . 2 . . . . . . . 3 . Critical Strikes 47 | . . . 1 . 2 4 10 2 . 3 12 1 1 . . 5 . . . . 1 . . 4 1 Burn 5 | . . . . . . . 4 1 . . . . . . . . . . . . . . . . . Meltdown 10 | . . . 1 . . . . 1 . 1 3 . . . . 1 . . . . 1 . . 1 1 Destroy 6 | . . . . . . . . . . . . . . . . 3 . . . . . . . 3 . Blast 1 | . . . . . . . . . . . . . . . . 1 . . . . . . . . . Smash 20 | . . . . . 2 2 4 . . 2 9 1 . . . . . . . . . . . . . Sever 4 | . . . . . . 2 2 . . . . . . . . . . . . . . . . . . Impale 1 | . . . . . . . . . . . . . 1 . . . . . . . . . . . . Melee Attacks 412 | . . . . . 35 129 40 9 5 40 82 30 11 18 2 11 . . . . . . . . . Impact 238 | . . . . . 35 43 23 8 . 31 51 30 1 8 2 6 . . . . . . . . . Slashing 103 | . . . . . . 86 17 . . . . . . . . . . . . . . . . . . Piercing 25 | . . . . . . . . . . . . . 10 10 . 5 . . . . . . . . . Sneak Attacks 23 | . . . . . 1 . 1 . 1 1 17 . 2 . . . . . . . . . . . . Combat Hostiles 2 | . . . . . . . . . . . 2 . . . . . . . . . . . . . . Follow-up Attacks 13 | . . . . . . 6 7 . . . . . . . . . . . . . . . . . . Damage Inflicted 36825 | 30 1053 387 851 . 1611 1576 2687 2158 . 1690 4150 1357 1612 280 117 4521 210 2410 495 60 1657 1322 2288 1893 2410 Guns 8820 | 30 152 101 . . 38 . 1540 1012 . . 399 74 109 . . 1947 . 929 190 60 578 29 426 1111 95 Cannons 10447 | . . . 561 . 351 . . 226 . 784 538 . . 225 29 1196 210 1481 305 . 647 1293 1054 782 765 Explosions 12179 | . 901 286 290 . 543 549 342 740 . 758 1133 1179 1202 . 88 1378 . . . . 432 . 808 . 1550 Melee 5288 | . . . . . 679 1027 736 158 . 148 2080 104 301 55 . . . . . . . . . . . Ramming 91 | . . . . . . . 69 22 . . . . . . . . . . . . . . . . . Kinetic 3552 | 30 152 101 . . 38 . . . . . 399 74 109 225 29 1841 . . . . . . . 116 438 Thermal 18669 | . 153 . 851 . 824 . 1540 1306 . 1542 1252 . 197 . . 1302 210 2410 495 60 1225 1322 1480 1777 723 Explosive 8793 | . 748 286 . . 70 549 342 672 . . 419 1179 1005 . 88 1378 . . . . . . 808 . 1249 Electromagnetic 432 | . . . . . . . . . . . . . . . . . . . . . 432 . . . . Impact 4025 | . . . . . 679 406 450 158 . 148 2080 104 . . . . . . . . . . . . . Slashing 907 | . . . . . . 621 286 . . . . . . . . . . . . . . . . . . Piercing 356 | . . . . . . . . . . . . . 301 55 . . . . . . . . . . . Highest Corruption 27 | . . . . . . 1 1 1 . 2 21 27 . . . . . . . . 4 4 11 16 16 Average Corruption 7 | . . . . . . 1 1 1 . 1 13 25 . . . . . . . . 2 4 8 14 11 Corruption Purged 16 | . . . . . . . . . . . . . . . . . . . . . . . . . 16 Corruption Blocked . | . . . . . . . . . . . . . . . . . . . . . . . . . . Effects 418 | . . . . . . 7 14 13 . 20 114 63 . . . . . . . . . 61 28 76 22 Message Errors 109 | . . . . . . 3 . 7 . 4 33 17 . . . . . . . . . 9 8 22 6 Matter Fused 107 | . . . . . . . 5 4 . 10 31 18 . . . . . . . . . 13 4 19 3 Heat Flow Errors 48 | . . . . . . 2 3 1 . 2 11 10 . . . . . . . . . 9 4 5 1 Energy Discharges 42 | . . . . . . 1 1 . . 1 10 5 . . . . . . . . . 8 4 10 2 Parts Rejected 7 | . . . . . . . 1 1 . . 2 1 . . . . . . . . . . 1 . 1 Parts Fused 5 | . . . . . . . . . . . 1 . . . . . . . . . . 2 . 2 . Data Loss (minor) 48 | . . . . . . 1 2 . . 2 10 5 . . . . . . . . . 11 4 11 2 Data Loss (major) 22 | . . . . . . . 1 . . 1 8 3 . . . . . . . . . 4 1 2 2 Misfires 15 | . . . . . . . 1 . . . 4 . . . . . . . . . . 4 1 3 2 Alerts 8 | . . . . . . . . . . . 3 3 . . . . . . . . . . . 1 1 Misdirections 2 | . . . . . . . . . . . 1 1 . . . . . . . . . . . . . Weapon Failures 5 | . . . . . . . . . . . . . . . . . . . . . . 1 1 1 2 Overload Shots 2 | . . . . . . . . 2 . . . . . . . . . . . . . . . . . Overflow Damage 2922 | . 73 1 188 . 268 200 229 94 . 147 1119 80 59 . . 39 . 58 14 . 55 1 29 127 141 Projectiles 882 | . . . 188 . 104 . . . . 61 142 . . . . 39 . 58 14 . 10 1 29 127 109 Explosions 314 | . 73 1 . . 23 . 16 . . 50 46 20 8 . . . . . . . 45 . . . 32 Melee 1726 | . . . . . 141 200 213 94 . 36 931 60 51 . . . . . . . . . . . . Knockbacks 22 | . . . . . 3 3 3 1 . . 7 . . 1 . . . . . . . . . 1 3 Impact 16 | . . . . . 2 3 3 1 . . 7 . . . . . . . . . . . . . . Kinetic 5 | . . . . . . . . . . . . . . 1 . . . . . . . . . 1 3 Secondary 1 | . . . . . 1 . . . . . . . . . . . . . . . . . . . . Self-Inflicted Damage 1958 | . 23 91 75 . 38 49 81 132 . 204 152 229 408 . . 160 . . . . 88 . 14 . 214 Shots 45 | . 1 4 1 . 1 1 3 4 . 3 3 6 6 . . 6 . . . . 1 . 1 . 4 Rammed 17 | . . . . . . . 13 4 . . . . . . . . . . . . . . . . . Targets Rammed 17 | . . . . . . . 13 4 . . . . . . . . . . . . . . . . . Kicked . | . . . . . . . . . . . . . . . . . . . . . . . . . . Crushed . | . . . . . . . . . . . . . . . . . . . . . . . . . . Highest Temperature 482 | . 19 24 162 . 137 192 482 274 . 198 287 266 54 21 . 300 144 282 300 40 252 390 276 240 313 Average Temperature 85 | . 8 10 64 . 48 48 112 75 . 59 118 102 26 8 . 91 54 101 119 30 77 73 81 83 98 Received Heat Transfer 4444 | . 54 . . . 117 210 819 710 . 150 336 405 448 63 . 524 36 276 . . 90 93 89 18 6 Effects 5 | . . . . . . . 2 1 . . . 1 . . . . . 1 . . . . . . . Shutdowns 1 | . . . . . . . 1 . . . . . . . . . . . . . . . . . . Energy Bleed 3 | . . . . . . . 1 . . . . 1 . . . . . 1 . . . . . . . Interference 1 | . . . . . . . . 1 . . . . . . . . . . . . . . . . . Siege Activations 57 | . . . . . . . 2 8 . . . . 2 . . 5 2 7 2 . 7 5 4 10 3 Total Turns 897 | . . . . . . . 33 97 . . . . 5 . . 112 20 134 33 . 126 57 75 170 35 Longest Duration 64 | . . . . . . . 18 27 . . . . 3 . . 64 18 35 18 . 49 31 36 52 22 Robots Corrupted 1 | . . . . . . . . . . . . . . . . . . . . . 1 . . . . Combat Hostiles . | . . . . . . . . . . . . . . . . . . . . . . . . . . Parts Fried 28 | . . . . . 6 3 1 1 . . 11 1 . . . . . . 1 . 4 . . . . Impact Corruptions 56 | . . . . . 8 4 6 2 . 1 34 1 . . . . . . . . . . . . . Robots Melted 13 | . . . 1 . . . . 1 . 1 3 . . . . 1 . 1 1 . 1 . . 2 1 Combat Hostiles 12 | . . . . . . . . 1 . 1 3 . . . . 1 . 1 1 . 1 . . 2 1 Parts Melted 48 | . . . 2 . . . 3 2 . 2 1 1 . . . 5 1 8 . . 3 2 4 12 2 Heat Transferred 18976 | . 100 . 480 . 720 . 2775 1846 . 1360 1280 . 100 . . 1293 185 2405 481 74 1165 1108 1332 1702 570 Parts Sabotaged . | . . . . . . . . . . . . . . . . . . . . . . . . . . Parts Stolen . | . . . . . . . . . . . . . . . . . . . . . . . . . . Parts Stripped . | . . . . . . . . . . . . . . . . . . . . . . . . . . Power Chain Reactions 1 | . . . . . . . . . . . . . 1 . . . . . . . . . . . . Alert | -11 -10 -10 -10 -9 -8 -8 -8 -8 -7 -7 -7 -7 -6 -6 -5 -5 -5 -5 -5 -5 -5 -5 -4 -4 -4 ------- Run | Yrd Mat Min Exi Min Mat Gar Mat Gar Fac Gar Fac Gar Fac Gar Fac Gar Fac Ext Cet Arc Hub Gar Fac Gar Fac Peak Influence 1546 | 5 503 204 . 60 465 1038 651 882 486 1102 594 1177 796 848 829 1546 845 489 371 249 496 1445 758 636 411 Initial 811 | . 3 123 . . 23 280 505 185 462 340 578 200 585 488 445 440 811 332 109 139 86 249 758 268 333 Average 459 | 1 258 141 . 36 277 690 463 426 474 748 238 685 605 589 548 846 765 164 305 234 223 604 258 427 308 Maximum Alert Level 4 | . 2 1 . . 2 3 2 3 2 4 2 4 3 3 3 4 3 2 1 1 2 4 3 2 2 Low Security (%) 16 | 100 15 81 . 100 30 . . 3 . . 28 . . . . . . 66 21 13 41 . 44 . 3 Level 1 33 | . 73 18 . . 47 17 20 51 . 12 52 27 . . . 8 . 28 78 86 57 40 51 55 94 Level 2 29 | . 11 . . . 21 32 79 27 100 16 19 18 98 74 68 23 36 4 . . . 30 . 44 2 Level 3 16 | . . . . . . 50 . 16 . 70 . 41 1 25 31 44 63 . . . . 10 4 . . Level 4 3 | . . . . . . . . . . . . 11 . . . 23 . . . . . 19 . . . Level 5 . | . . . . . . . . . . . . . . . . . . . . . . . . . . High Security . | . . . . . . . . . . . . . . . . . . . . . . . . . . Max Security . | . . . . . . . . . . . . . . . . . . . . . . . . . . Squads Dispatched 39 | . 3 . . . . . 4 . 1 . 12 . 6 . 2 . 2 1 . . 4 . 3 . 1 Investigation 5 | . 1 . . . . . 2 . . . 2 . . . . . . . . . . . . . . Extermination 10 | . . . . . . . . . 1 . 4 . 1 . . . . . . . 2 . 1 . 1 Reinforcement 14 | . 2 . . . . . 2 . . . 3 . 3 . . . . 1 . . 1 . 2 . . Assault 6 | . . . . . . . . . . . . . 2 . 2 . 2 . . . . . . . . Garrison 4 | . . . . . . . . . . . 3 . . . . . . . . . 1 . . . . Intercept . | . . . . . . . . . . . . . . . . . . . . . . . . . . Searches Triggered . | . . . . . . . . . . . . . . . . . . . . . . . . . . Construction Impeded 2 | . . . . . . . . . . . 1 . . . . . . . . . . . 1 . . Haulers Reinforced 1 | . . . . . . . . . . . . . 1 . . . . . . . . . . . . Active Scanning Responses . | . . . . . . . . . . . . . . . . . . . . . . . . . . Cargo Convoy Interrupts 1 | . . . . . . . . . . . . . . . . . . . . . . . . . 1 Alert ID Control Effect 17 | . . . . . . . . . . . . . . . . . 1 1 1 . . 12 2 . . Stealth | -11 -10 -10 -10 -9 -8 -8 -8 -8 -7 -7 -7 -7 -6 -6 -5 -5 -5 -5 -5 -5 -5 -5 -4 -4 -4 --------- Run | Yrd Mat Min Exi Min Mat Gar Mat Gar Fac Gar Fac Gar Fac Gar Fac Gar Fac Ext Cet Arc Hub Gar Fac Gar Fac Distress Signals 9 | . 2 . . . 1 . . . . . 3 . . . 1 . . . 1 . 1 . . . . Communications Jammed 274 | . . . . . . . 30 . . . 49 . 5 . . . . 52 . . 43 . 13 . 82 Distress Signals 272 | . . . . . . . 30 . . . 49 . 5 . . . . 52 . . 41 . 13 . 82 Times Spotted 470 | . 14 12 8 2 18 21 36 24 2 21 52 31 20 8 5 27 7 30 10 3 30 35 21 15 18 Peak Tracking Total 12 | . 3 4 11 2 4 5 3 5 2 7 9 9 6 2 5 8 3 4 5 2 6 6 4 4 12 Tactical Retreats 28 | . 1 1 1 . 1 2 . 2 . . 9 1 1 . . 3 1 2 . . 1 . . 2 . Traps | -11 -10 -10 -10 -9 -8 -8 -8 -8 -7 -7 -7 -7 -6 -6 -5 -5 -5 -5 -5 -5 -5 -5 -4 -4 -4 ------- Run | Yrd Mat Min Exi Min Mat Gar Mat Gar Fac Gar Fac Gar Fac Gar Fac Gar Fac Ext Cet Arc Hub Gar Fac Gar Fac Traps Triggered 59 | . 7 . . . . 6 2 11 . 8 5 . 2 3 . 8 . . . . . 2 3 2 . Indirectly . | . . . . . . . . . . . . . . . . . . . . . . . . . . Trap Hack Attempts . | . . . . . . . . . . . . . . . . . . . . . . . . . . Triggered . | . . . . . . . . . . . . . . . . . . . . . . . . . . Disarmed . | . . . . . . . . . . . . . . . . . . . . . . . . . . Reprogrammed . | . . . . . . . . . . . . . . . . . . . . . . . . . . Reused 6 | . . . . . . 4 . 2 . . . . . . . . . . . . . . . . . Traps Extracted . | . . . . . . . . . . . . . . . . . . . . . . . . . . Installed 6 | . . . . . . 4 . 2 . . . . . . . . . . . . . . . . . Triggered 8 | . . . . . . 4 . 2 . . 2 . . . . . . . . . . . . . . Most Traps Carried 5 | . . . . . . 5 4 4 2 2 2 4 4 . . . . . . . . . . . . Machines | -11 -10 -10 -10 -9 -8 -8 -8 -8 -7 -7 -7 -7 -6 -6 -5 -5 -5 -5 -5 -5 -5 -5 -4 -4 -4 ---------- Run | Yrd Mat Min Exi Min Mat Gar Mat Gar Fac Gar Fac Gar Fac Gar Fac Gar Fac Ext Cet Arc Hub Gar Fac Gar Fac Machines Disabled 69 | . 6 1 5 . 2 5 1 . . 2 2 3 6 . 9 6 . 1 . 2 6 3 4 2 3 Max in Single Turn 5 | . 4 1 2 . 1 1 1 . . 1 2 1 4 . . 1 . 1 . 1 5 1 2 1 2 Garrison Access 1 | . . . . . . . . . . . . . . . . . 1 . . . . . . . . Garrison Relay 23 | . . . . . . 1 . 4 . 2 . 3 . 1 . 2 . . . . . 4 . 6 . Network Hub 1 | . . . . . . . . . . . . . . . . . . . . . 1 . . . . Machines Repaired . | . . . . . . . . . . . . . . . . . . . . . . . . . . Machines Dismantled 25 | . . . . . . . . 4 . 2 . 2 1 2 . 2 . . . . 4 3 . 5 . Machines Sabotaged . | . . . . . . . . . . . . . . . . . . . . . . . . . . Overloaded Fab Kills . | . . . . . . . . . . . . . . . . . . . . . . . . . . Hacking | -11 -10 -10 -10 -9 -8 -8 -8 -8 -7 -7 -7 -7 -6 -6 -5 -5 -5 -5 -5 -5 -5 -5 -4 -4 -4 --------- Run | Yrd Mat Min Exi Min Mat Gar Mat Gar Fac Gar Fac Gar Fac Gar Fac Gar Fac Ext Cet Arc Hub Gar Fac Gar Fac Machines Accessed 93 | . 6 1 2 1 4 2 13 1 2 4 10 3 7 2 2 1 3 13 1 . 7 1 4 2 1 Terminals 64 | . 4 . . 1 2 2 8 1 . 4 6 3 3 2 1 1 1 12 1 . 6 1 2 2 1 Fabricators 3 | . . . . . . . . . . . 2 . . . . . . . . . . . 1 . . Repair Stations 3 | . . . . . . . 1 . 1 . . . 1 . . . . . . . . . . . . Recycling Units 6 | . 2 . . . . . 1 . . . . . 2 . . . . 1 . . . . . . . Scanalyzers 5 | . . . . . 1 . 2 . . . 1 . . . . . 1 . . . . . . . . Garrison Access 9 | . . . . . 1 . 1 . 1 . 1 . 1 . 1 . 1 . . . 1 . 1 . . Total Hacks 264 | . 24 1 5 2 27 3 46 2 3 7 28 7 12 2 3 3 5 33 1 . 25 1 12 3 9 Successful 132 | . 7 1 5 1 19 2 29 . 1 1 13 2 3 1 2 1 2 14 1 . 15 1 5 2 4 Failed 131 | . 17 . . 1 8 1 17 2 2 6 15 5 9 1 1 2 3 18 . . 10 . 7 1 5 Catastrophic 30 | . 4 . . . . . 4 1 . 2 3 1 5 1 1 . . 3 . . 3 . 1 . 1 Database Lockouts 1 | . . . . . . . . . . . . . . . . . . 1 . . . . . . . Manual 120 | . 19 . 1 . 11 . 17 . . . 12 . 1 . 2 . . 16 1 . 23 . 9 . 8 Terminals 193 | . 18 . . 2 17 3 23 2 . 7 20 7 5 2 2 3 2 32 1 . 24 1 10 3 9 Fabricators 6 | . . . . . . . . . . . 5 . . . . . . . . . . . 1 . . Repair Stations 9 | . . . . . . . 5 . 2 . . . 2 . . . . . . . . . . . . Recycling Units 13 | . 6 . . . . . 2 . . . . . 4 . . . . 1 . . . . . . . Scanalyzers 27 | . . . . . 9 . 14 . . . 2 . . . . . 2 . . . . . . . . Garrison Access 10 | . . . . . 1 . 2 . 1 . 1 . 1 . 1 . 1 . . . 1 . 1 . . Terminal Hacks 49 | . 3 1 5 1 6 2 7 . . 1 2 2 . 1 . 1 . 9 1 . 2 1 1 2 1 Record 6 | . . . 4 . . . 1 . . . . . . . . . . . . . . . 1 . . Robot Schematic 2 | . . . . . . . . . . . . . . . . . . 1 . . 1 . . . . Robot Analysis 6 | . 3 . . . 2 . 1 . . . . . . . . . . . . . . . . . . Open Door 6 | . . 1 . . . . . . . . . . . . . . . 4 1 . . . . . . Emergency Access Points 6 | . . . . . . 1 . . . . . 1 . 1 . 1 . . . . . 1 . 1 . Terminal Index 2 | . . . . . 1 . . . . . 1 . . . . . . . . . . . . . . Repair Station Index 1 | . . . . . . . . . . . . . . . . . . . . . . . . . 1 Scanalyzer Index 1 | . . . . . . . 1 . . . . . . . . . . . . . . . . . . Alert Level 1 | . . . . . 1 . . . . . . . . . . . . . . . . . . . . Unreport Threat 6 | . . . . . . . 2 . . . 1 . . . . . . 2 . . 1 . . . . Locate Traps 5 | . . . . . 1 . 2 . . . . . . . . . . 2 . . . . . . . Zone Layout 2 | . . . . 1 1 . . . . . . . . . . . . . . . . . . . . Garrison Registry 1 | . . . . . . . . . . . . 1 . . . . . . . . . . . . . Patrol Navigation 1 | . . . . . . . . . . . . . . . . . . . . . . . . 1 . Security Stations 2 | . . . . . . 1 . . . 1 . . . . . . . . . . . . . . . Derelict Proto ID Bank 1 | . . . 1 . . . . . . . . . . . . . . . . . . . . . . Fabricator Hacks 3 | . . . . . . . . . . . 3 . . . . . . . . . . . . . . Load Schematic 2 | . . . . . . . . . . . 2 . . . . . . . . . . . . . . Build 1 | . . . . . . . . . . . 1 . . . . . . . . . . . . . . Repair Station Hacks 5 | . . . . . . . 4 . . . . . 1 . . . . . . . . . . . . Scan Component 3 | . . . . . . . 2 . . . . . 1 . . . . . . . . . . . . Repair 2 | . . . . . . . 2 . . . . . . . . . . . . . . . . . . Recycling Unit Hacks 2 | . 1 . . . . . . . . . . . . . . . . 1 . . . . . . . Retrieve Components 2 | . 1 . . . . . . . . . . . . . . . . 1 . . . . . . . Scanalyzer 23 | . . . . . 7 . 13 . . . 2 . . . . . 1 . . . . . . . . Insert Component 13 | . . . . . 4 . 7 . . . 1 . . . . . 1 . . . . . . . . Analyze 10 | . . . . . 3 . 6 . . . 1 . . . . . . . . . . . . . . Garrison Access Hacks 10 | . . . . . 1 . 2 . 1 . 1 . 1 . 1 . 1 . . . 1 . 1 . . Unlock Access 8 | . . . . . 1 . 1 . 1 . 1 . 1 . 1 . . . . . 1 . 1 . . Seal Access 1 | . . . . . . . . . . . . . . . . . 1 . . . . . . . . Coupler Status 1 | . . . . . . . 1 . . . . . . . . . . . . . . . . . . Unauthorized Hacks 40 | . 3 . . . 5 . 3 . . . 5 . 1 . 1 . . 4 . . 12 . 3 . 3 Terminals 38 | . 2 . . . 5 . 3 . . . 5 . . . 1 . . 4 . . 12 . 3 . 3 Track 10 | . . . . . 2 . . . . . 1 . . . . . . . . . 6 . 1 . . Assimilate 1 | . . . . . . . . . . . . . . . . . . . . . . . . . 1 Botnet 19 | . 2 . . . 2 . 3 . . . 3 . . . 1 . . 3 . . 3 . 1 . 1 Disrupt 3 | . . . . . . . . . . . . . . . . . . . . . 3 . . . . Operators 5 | . . . . . 1 . . . . . 1 . . . . . . 1 . . . . 1 . 1 Fabricators . | . . . . . . . . . . . . . . . . . . . . . . . . . . Repair Stations . | . . . . . . . . . . . . . . . . . . . . . . . . . . Recycling Units 2 | . 1 . . . . . . . . . . . 1 . . . . . . . . . . . . Mask 2 | . 1 . . . . . . . . . . . 1 . . . . . . . . . . . . Scanalyzers . | . . . . . . . . . . . . . . . . . . . . . . . . . . Garrison Access . | . . . . . . . . . . . . . . . . . . . . . . . . . . Data Cores Recovered 1 | . . . . . . . 1 . . . . . . . . . . . . . . . . . . Used . | . . . . . . . . . . . . . . . . . . . . . . . . . . Hacking Detections 76 | . 6 . . 1 3 2 12 1 1 4 10 3 7 1 1 1 2 10 1 . 6 . 3 . 1 Full Trace Events 9 | . 2 . . . . . 3 1 . . 2 . . . . 1 . . . . . . . . . Feedback Events . | . . . . . . . . . . . . . . . . . . . . . . . . . . Feedback Blocked . | . . . . . . . . . . . . . . . . . . . . . . . . . . Robot Schematics Acquired 2 | . . . . . . . . . . . . . . . . . . 1 . . 1 . . . . Robots Built . | . . . . . . . . . . . . . . . . . . . . . . . . . . Authchips . | . . . . . . . . . . . . . . . . . . . . . . . . . . Time . | . . . . . . . . . . . . . . . . . . . . . . . . . . Total Robot Build Rating . | . . . . . . . . . . . . . . . . . . . . . . . . . . Part Schematics Acquired 7 | . . . . . 2 . 4 . . . 1 . . . . . . . . . . . . . . Parts Built 2 | . . . . . . . . . . . 2 . . . . . . . . . . . . . . Authchips . | . . . . . . . . . . . . . . . . . . . . . . . . . . Time 53 | . . . . . . . . . . . 53 . . . . . . . . . . . . . . Total Part Build Rating 12 | . . . . . . . . . . . 12 . . . . . . . . . . . . . . Parts Repaired 2 | . . . . . . . 2 . . . . . . . . . . . . . . . . . . Time 112 | . . . . . . . 112 . . . . . . . . . . . . . . . . . . Parts Recycled . | . . . . . . . . . . . . . . . . . . . . . . . . . . Recycled Matter . | . . . . . . . . . . . . . . . . . . . . . . . . . . Retrieved Matter . | . . . . . . . . . . . . . . . . . . . . . . . . . . Retrieved Components 3 | . . . . . . . . . . . . . . . . . . 3 . . . . . . . Parts Scanalyzed 10 | . . . . . 3 . 5 . . . 1 . . . . . 1 . . . . . . . . Part Schematics Acquired 7 | . . . . . 2 . 4 . . . 1 . . . . . . . . . . . . . . Parts Damaged 1 | . . . . . . . . . . . 1 . . . . . . . . . . . . . . Bothacking | -11 -10 -10 -10 -9 -8 -8 -8 -8 -7 -7 -7 -7 -6 -6 -5 -5 -5 -5 -5 -5 -5 -5 -4 -4 -4 ------------ Run | Yrd Mat Min Exi Min Mat Gar Mat Gar Fac Gar Fac Gar Fac Gar Fac Gar Fac Ext Cet Arc Hub Gar Fac Gar Fac Used RIF Installer 10 | . . . . . . 1 . 1 . 1 . 1 . 2 . 1 . . . . . 1 . 2 . Hotswap 1 | . . . . . . . . . . 1 . . . . . . . . . . . . . . . Command Fork 1 | . . . . . . . . . . . . . . 1 . . . . . . . . . . . Signal Jammer 1 | . . . . . . . . . . . . . . . . . . . . . . . . 1 . Zone Cloak 1 | . . . . . . . . . . . . 1 . . . . . . . . . . . . . Robot Detection 1 | . . . . . . . . . . . . . . . . 1 . . . . . . . . . Watcher Feeds 1 | . . . . . . . . 1 . . . . . . . . . . . . . . . . . Alert ID Control 1 | . . . . . . . . . . . . . . 1 . . . . . . . . . . . Structural Interface 1 | . . . . . . . . . . . . . . . . . . . . . . 1 . . . Program Shield 1 | . . . . . . . . . . . . . . . . . . . . . . . . 1 . Robots Hacked 75 | . . . . . . . . 1 2 3 10 10 . . . . 3 7 3 . 8 17 6 3 2 Non-combat 18 | . . . . . . . . . 2 . 2 . . . . . 1 4 . . 5 . 2 . 2 Combat 57 | . . . . . . . . 1 . 3 8 10 . . . . 2 3 3 . 3 17 4 3 . Robot Hacks Applied 86 | . . . . . . . . 1 2 3 14 11 . . . . 4 7 3 . 11 17 8 3 2 parse_system 6 | . . . . . . . . . . . . . . . . . . . 3 . 3 . . . . deconstruct_machine 3 | . . . . . . . . . . . . . . . . . . . . . 3 . . . . hold_bot 1 | . . . . . . . . . . . 1 . . . . . . . . . . . . . . ignore_repairs 3 | . . . . . . . . . . . . . . . . . . . . . 3 . . . . drop_inventory 1 | . . . . . . . . . . . . . . . . . . 1 . . . . . . . purge_threat 6 | . . . . . . . . . . . 3 . . . . . . . . . . . 3 . . block_reporting 1 | . . . . . . . . . . . 1 . . . . . . . . . . . . . . map_route 2 | . . . . . . . . . 1 . . . . . . . . . . . . . 1 . . find_garrison 1 | . . . . . . . . . . . . . . . . . . . . . 1 . . . . scatter_targeting 5 | . . . . . . . . . . . . 5 . . . . . . . . . . . . . overload_power 1 | . . . . . . . . . . . . . . . . . . 1 . . . . . . . amplify_resonance 5 | . . . . . . . . . . . . . . . . . . . . . . 4 . . 1 reboot_system 1 | . . . . . . . . . . . . 1 . . . . . . . . . . . . . overwrite_iff 16 | . . . . . . . . . . 2 5 1 . . . . 1 . . . . 5 2 . . formatsys_low 5 | . . . . . . . . . 1 . . . . . . . 1 3 . . . . . . . formatsys_high 29 | . . . . . . . . 1 . 1 4 4 . . . . 2 2 . . 1 8 2 3 1 Relay Couplers Released 90 | . . . . . . 4 . 15 . 7 . 13 . 3 . 8 . . . . . 15 . 25 . Machine Destruction 90 | . . . . . . 4 . 15 . 7 . 13 . 3 . 8 . . . . . 15 . 25 . Attached 27 | . . . . . . . . 1 1 3 1 4 1 2 . 3 . . . . 1 3 2 5 . Fabnet Peak Effective % . | . . . . . . . . . . . . . . . . . . . . . . . . . . Robots Rewired 20 | . . . . . . . . . . . . . . 8 . . . 12 . . . . . . . Allies Hacked 2 | . . . . . . . . . . . 1 . . . . . . . . . 1 . . . . Hacks Repelled . | . . . . . . . . . . . . . . . . . . . . . . . . . . Allies | -11 -10 -10 -10 -9 -8 -8 -8 -8 -7 -7 -7 -7 -6 -6 -5 -5 -5 -5 -5 -5 -5 -5 -4 -4 -4 -------- Run | Yrd Mat Min Exi Min Mat Gar Mat Gar Fac Gar Fac Gar Fac Gar Fac Gar Fac Ext Cet Arc Hub Gar Fac Gar Fac Total Allies 99 | . . 3 . . . . . 1 1 3 8 7 . 10 . 2 4 25 5 . 1 18 4 5 2 Largest Group 24 | . . 3 2 . . . . 1 1 2 2 3 . 8 8 4 4 24 21 17 14 7 6 5 1 Highest-Rated Group 941 | . . 40 24 . . . . 16 23 35 35 174 . 248 241 124 81 710 941 743 659 281 281 60 9 Highest-Rated Ally 159 | . . 16 16 . . . . 16 23 23 23 80 . 62 32 46 29 159 159 132 137 95 95 12 9 Total Orders 167 | . . . . 1 . . . . . 3 4 . 1 13 2 2 1 61 31 4 25 17 2 . . STAY 70 | . . . . . . . . . . 1 2 . . . 1 . . 28 13 2 12 10 1 . . ROAM 1 | . . . . . . . . . . . . . . . . . 1 . . . . . . . . FOLLOW 48 | . . . . . . . . . . . 2 . . . 1 . . 16 11 1 9 7 1 . . GUARD 5 | . . . . . . . . . . . . . . . . . . 5 . . . . . . . AID 24 | . . . . . . . . . . 2 . . . . . . . 12 5 1 4 . . . . RETURN 19 | . . . . 1 . . . . . . . . 1 13 . 2 . . 2 . . . . . . Ally Attacks 708 | . . 8 7 15 . . . 20 . 7 37 61 10 64 11 20 16 107 51 35 68 105 51 15 . Total Damage 16293 | . . 73 22 72 . . . 194 . 89 391 2168 59 343 856 634 247 2581 2074 1050 2296 2026 989 129 . Kills 90 | . . 2 . 2 . . . 1 . 2 4 16 1 2 8 2 1 10 8 4 11 13 2 1 . Allies Corrupted 6 | . . . . . . . . . . . . . . . . . . 1 . . 5 . . . . Allies Melted . | . . . . . . . . . . . . . . . . . . . . . . . . . . Intel | -11 -10 -10 -10 -9 -8 -8 -8 -8 -7 -7 -7 -7 -6 -6 -5 -5 -5 -5 -5 -5 -5 -5 -4 -4 -4 ------- Run | Yrd Mat Min Exi Min Mat Gar Mat Gar Fac Gar Fac Gar Fac Gar Fac Gar Fac Ext Cet Arc Hub Gar Fac Gar Fac Robot Analysis Total 6 | . 3 . . . 2 . 1 . . . . . . . . . . . . . . . . . . Derelict Logs Recovered 2 | . . 1 . 1 . . . . . . . . . . . . . . . . . . . . . Drone Launches 43 | . . . . 6 . . . . . . . . 6 24 . 3 . . 4 . . . . . . Drone Recoveries 42 | . . . . 6 . . . . . . . . 6 24 . 3 . . 3 . . . . . . Exploration | -11 -10 -10 -10 -9 -8 -8 -8 -8 -7 -7 -7 -7 -6 -6 -5 -5 -5 -5 -5 -5 -5 -5 -4 -4 -4 ------------- Run | Yrd Mat Min Exi Min Mat Gar Mat Gar Fac Gar Fac Gar Fac Gar Fac Gar Fac Ext Cet Arc Hub Gar Fac Gar Fac Turns Passed 36758 | 96 574 677 904 115 577 2099 2973 2165 288 2258 3226 1353 1126 1603 407 2359 632 3270 763 232 2532 2981 1100 1844 604 Spaces Moved 17097 | 54 252 552 782 82 401 1446 1042 772 150 848 1372 658 613 623 260 1177 360 1593 338 99 1210 1304 375 559 175 Core 14 | 8 . 2 . . . . . . . . 4 . . . . . . . . . . . . . . Treads 11733 | 46 252 147 . . . 66 1042 772 150 848 578 658 405 81 93 582 360 1593 338 99 1210 1304 375 559 175 Legs . | . . . . . . . . . . . . . . . . . . . . . . . . . . Wheels 5350 | . . 403 782 82 401 1380 . . . . 790 . 208 542 167 595 . . . . . . . . . Hover . | . . . . . . . . . . . . . . . . . . . . . . . . . . Flight . | . . . . . . . . . . . . . . . . . . . . . . . . . . Fastest Speed 50 | 50 160 80 80 110 95 101 165 165 161 161 105 160 100 100 100 115 152 152 152 152 152 152 237 245 245 Average Speed 163 | 143 160 101 108 110 99 114 221 225 182 240 186 160 144 113 139 144 152 152 152 152 152 163 237 245 245 Slowest Speed 1450 | 160 160 250 140 110 110 165 245 245 241 243 1450 160 240 240 160 250 152 152 250 152 152 237 237 245 245 Overloaded Moves . | . . . . . . . . . . . . . . . . . . . . . . . . . . Propulsion Burnouts . | . . . . . . . . . . . . . . . . . . . . . . . . . . Robots Hopped . | . . . . . . . . . . . . . . . . . . . . . . . . . . Cave-ins Triggered 1 | . . . . . . . . . . . . . . . . . . . . . . . . 1 . Exploration Rate (%) 53 | 6 55 90 89 12 36 97 81 66 3 86 41 76 30 42 8 72 14 98 79 79 78 87 10 53 11 Regions Visited 25 Branch Regions 7 Pre-discovered Areas 1 | . . . 1 . . . . . . . . . . . . . . . . . . . . . . Known Exits Taken 8 | . . . . . 1 . 1 . 1 . 1 . 1 . 1 . . . . . 1 . 1 . . Unknown Exits Taken 9 | 1 1 1 1 1 . . . . . . . . . . . . 1 1 1 1 . . . . . Scrap Searched 1 | . . 1 . . . . . . . . . . . . . . . . . . . . . . . Spaces Dug 254 | . . 13 . . 6 15 34 20 . 16 10 8 1 6 2 10 1 4 . . 26 61 4 14 3 Terrain Destroyed 1487 | . 84 77 26 . 125 62 103 97 . 99 55 58 39 9 10 154 3 14 6 . 246 71 85 18 46 Melee 67 | . . . . . 6 15 3 2 . 10 10 8 1 5 2 5 . . . . . . . . . Projectile 246 | . . . 1 . 3 . 42 3 . 4 1 . . 4 . 24 3 14 6 . 26 71 17 17 10 AOE 1172 | . 84 77 25 . 116 47 58 92 . 85 44 50 38 . 8 124 . . . . 220 . 68 . 36 Terrain Rammed . | . . . . . . . . . . . . . . . . . . . . . . . . . . Walls Destroyed . | . . . . . . . . . . . . . . . . . . . . . . . . . . Machines Disabled . | . . . . . . . . . . . . . . . . . . . . . . . . . . Actions | -11 -10 -10 -10 -9 -8 -8 -8 -8 -7 -7 -7 -7 -6 -6 -5 -5 -5 -5 -5 -5 -5 -5 -4 -4 -4 --------- Run | Yrd Mat Min Exi Min Mat Gar Mat Gar Fac Gar Fac Gar Fac Gar Fac Gar Fac Ext Cet Arc Hub Gar Fac Gar Fac Total 23922 | 66 381 639 821 108 518 1734 1511 1065 162 987 1914 846 761 1442 295 1645 435 2340 566 177 1769 2008 519 913 300 Wait 4382 | . 89 51 . 21 36 74 283 164 . 25 321 82 58 683 21 239 46 621 177 74 449 492 70 240 66 Move 17077 | 53 251 551 781 81 401 1445 1042 771 150 847 1371 657 613 622 260 1176 359 1592 337 98 1209 1303 375 557 175 Hop . | . . . . . . . . . . . . . . . . . . . . . . . . . . Pick Up 218 | 4 3 6 17 1 6 26 13 7 . 10 12 7 8 3 7 31 5 2 4 . 1 18 7 18 2 Fast Attach 115 | 7 13 3 1 . 9 5 7 4 . 3 20 3 2 2 2 4 2 . 11 . 2 9 1 1 4 Attach 121 | . . 3 2 1 4 5 6 6 3 14 22 4 12 2 . 16 . 1 1 . 1 3 5 3 7 Detach 35 | . . . . . 2 . 2 2 2 6 14 . 2 . . 2 . . . . . . 1 . 2 Swap 217 | . 6 3 1 1 2 14 21 15 . 5 4 14 7 13 2 27 4 15 4 2 15 16 6 15 5 Drop 173 | . . 6 11 3 10 14 14 2 . 5 14 5 7 3 . 21 6 1 17 . 2 19 1 8 4 Fire 851 | 2 19 16 8 . 13 8 79 52 . 12 39 38 11 14 1 95 11 75 15 3 62 139 53 51 35 Melee 382 | . . . . . 35 108 31 9 5 40 82 30 11 18 2 11 . . . . . . . . . Ram . | . . . . . . . . . . . . . . . . . . . . . . . . . . Kick . | . . . . . . . . . . . . . . . . . . . . . . . . . . Crush 17 | . . . . . . . 13 4 . . . . . . . . . . . . . . . . . Escape Stasis 95 | . . . . . . 31 . 13 . 14 14 . 2 . . 16 . . . . . . . 5 . Rewire 108 | . . . . . . . . 1 1 . . . . 71 . . 2 33 . . . . . . . Trap 6 | . . . . . . 4 . 2 . . . . . . . . . . . . . . . . . Miscellaneous 125 | . . . . . . . . 13 1 6 1 6 28 11 . 7 . . . . 28 9 . 15 . Route ------- -11/Scrapyard -10/Materials (discovered 2 exits: *Mat / *Min) -10/Mines (discovered 3 exits: *Mat x2 / *Exi) -10/Exiles -9/Mines -8/Materials -8/Garrison (discovered 3 exits: *Mat x3) -8/Materials (discovered 2 exits: *Fac / Gar) -8/Garrison (discovered 2 exits: *Fac x2) -7/Factory (discovered 2 exits: *Low / Gar) -7/Garrison (discovered 3 exits: *Fac x3) -7/Factory (discovered 3 exits: *Fac x2 / Gar) -7/Garrison (discovered 3 exits: *Fac x3) -6/Factory -6/Garrison -5/Factory -5/Garrison (discovered 2 exits: *Fac x2) -5/Factory -5/Extension (discovered 2 exits: *Fac / *Cet) -5/Cetus (discovered 2 exits: *Fac / [*Arc]) -5/Archives (discovered 2 exits: *Hub x2) -5/Hub_04(d) (discovered 5 exits: *Fac x4 / Gar) -5/Garrison (discovered 3 exits: *Fac x3) -4/Factory (discovered 2 exits: [Upp] / Gar) -4/Garrison -4/Factory (discovered 1 exit: [*Res]) History --------- Turn | Location | Event 3 | -11/Scrapyard | Discovered new exit (range 16) 97 | -11/Scrapyard | Entered Materials 307 | -10/Materials | Build established: Mutant 311 | -10/Materials | Discovered new exit (range 16) 529 | -10/Materials | Discovered new exit (range 16) 671 | -10/Materials | Entered Mines 672 | -10/Mines | Assembled infested the area 679 | -10/Mines | Met a Derelict bent on vengeance 879 | -10/Mines | A weapon hastily lodged in a ceiling crevice suddenly fell to the ground 981 | -10/Mines | Deemed a non-threat by the Exiles lab entrance 982 | -10/Mines | Discovered new exit (range 5) 1050 | -10/Mines | Received a Rocket Launcher from a helpful Derelict 1066 | -10/Mines | Discovered new exit (range 7) 1096 | -10/Mines | Identified exit to Materials 1111 | -10/Mines | Core integrity fell below 50% 1140 | -10/Mines | Found the Drone Emporium 1144 | -10/Mines | Found Prototype Device 1144 | -10/Mines | Identified Thief Drone Bay 1189 | -10/Mines | Assisted by bots powering up and referring to "LRC-V3" 1348 | -10/Mines | Entered Exiles 1348 | -10/Exiles | Accompanied by 2 allies 1380 | -10/Exiles | Met 8R-AWN 1410 | -10/Exiles | Met EX-HEX 1461 | -10/Exiles | Met EX-DEC 1491 | -10/Exiles | Visited The Gauntlet 1708 | -10/Exiles | Met EX-BIN 1995 | -10/Exiles | Aligned with FarCom system 1996 | -10/Exiles | Given EX-Vault access code 2027 | -10/Exiles | Learned location of Zion (-6) 2076 | -10/Exiles | Opened EX-Vault 2082 | -10/Exiles | Found Flying Fortress v7 2085 | -10/Exiles | Found 0b10 Alert Chip 2088 | -10/Exiles | Found YOLO Cannon 2108 | -10/Exiles | Warned to stay clear of 0b10 Research branches 2163 | -10/Exiles | Attacked by the Exiles 2176 | -10/Exiles | Destroyed EX-BIN 2204 | -10/Exiles | Core integrity fell below 20% 2220 | -10/Exiles | Destroyed 7 combat bots 2242 | -10/Exiles | Discovered new exit (range 11) 2252 | -10/Exiles | Stole three prototypes: YOLO Cannon, Flying Fortress v7, 0b10 Alert Chip 2252 | -10/Exiles | Entered Mines 2262 | -9/Mines | Learned 4 Materials zone layouts 2266 | -9/Mines | Discovered new exit (range 19) 2367 | -9/Mines | Entered Materials 2367 | -8/Materials | Evolved 4 slots: Propulsion x1, Utility x3 2944 | -8/Materials | Identified exit to Garrison 2944 | -8/Materials | Entered Garrison 3096 | -8/Garrison | Triggered checkpoint 3306 | -8/Garrison | Triggered checkpoint 3372 | -8/Garrison | Triggered checkpoint 3410 | -8/Garrison | Triggered checkpoint 3470 | -8/Garrison | Triggered checkpoint 3509 | -8/Garrison | Discovered new exit (range 9) 3944 | -8/Garrison | Triggered checkpoint 4078 | -8/Garrison | Triggered checkpoint 4100 | -8/Garrison | Discovered new exit (range 11) 4168 | -8/Garrison | Triggered checkpoint 4232 | -8/Garrison | Triggered checkpoint 4349 | -8/Garrison | Discovered new exit (range 9) 4367 | -8/Garrison | Lost 3 parts (1n2u) 4557 | -8/Garrison | Learned Materials security intel 4719 | -8/Garrison | Installed Relay Interface Framework 4754 | -8/Garrison | Garrison Relay disabled 4905 | -8/Garrison | Build established: Scavenger-Mutant 5043 | -8/Garrison | Entered Materials 5297 | -8/Materials | Build established: Mutant 6365 | -8/Materials | Discovered new exit (range 20) 7590 | -8/Materials | Repaired Hvy. Treads 7648 | -8/Materials | Repaired Arm. Medium Treads 7662 | -8/Materials | Core integrity fell below 50% 8016 | -8/Materials | Identified exit to Garrison 8016 | -8/Materials | Entered Garrison 8250 | -8/Garrison | Spotted B-75 Beast 8250 | -8/Garrison | Spotted B-75 Beast 8288 | -8/Garrison | Triggered checkpoint 8528 | -8/Garrison | Garrison Relay disabled 8600 | -8/Garrison | Triggered checkpoint 8671 | -8/Garrison | Garrison Relay disabled 8858 | -8/Garrison | Triggered checkpoint 9269 | -8/Garrison | Triggered checkpoint 9299 | -8/Garrison | Discovered new exit (range 15) 9536 | -8/Garrison | Triggered checkpoint 9585 | -8/Garrison | Garrison Relay disabled 9762 | -8/Garrison | Core integrity fell below 20% 9847 | -8/Garrison | Lost 5 parts (1p1n3w) 9870 | -8/Garrison | Build established: Bothacker-Mutant 9917 | -8/Garrison | Discovered new exit (range 12) 9937 | -8/Garrison | Expanded RIF knowledge: Watcher Feeds 9980 | -8/Garrison | Triggered checkpoint 10112 | -8/Garrison | Garrison Relay disabled 10181 | -8/Garrison | Entered Factory 10181 | -7/Factory | Evolved 2 slots: Propulsion x1, Utility x1 10221 | -7/Factory | Discovered new exit (range 9) 10326 | -7/Factory | Identified exit to Lower Caves 10469 | -7/Factory | Identified exit to Garrison 10469 | -7/Factory | Entered Garrison 10469 | -7/Garrison | Accompanied by 1 ally 10511 | -7/Garrison | Expanded RIF knowledge: Hotswap 10637 | -7/Garrison | Triggered checkpoint 10758 | -7/Garrison | Triggered checkpoint 10777 | -7/Garrison | Triggered checkpoint 10785 | -7/Garrison | Triggered checkpoint 10814 | -7/Garrison | Destroyed 11 combat bots 10824 | -7/Garrison | Lost 3 parts (2n1u) 11085 | -7/Garrison | Triggered checkpoint 11183 | -7/Garrison | Discovered new exit (range 3) 11250 | -7/Garrison | Garrison Relay disabled 11701 | -7/Garrison | Discovered new exit (range 18) 11703 | -7/Garrison | Triggered checkpoint 11954 | -7/Garrison | Discovered new exit (range 8) 11973 | -7/Garrison | Triggered checkpoint 12094 | -7/Garrison | Learned Factory security intel 12156 | -7/Garrison | Garrison Relay disabled 12727 | -7/Garrison | Entered Factory 12727 | -7/Factory | Accompanied by 2 allies 13159 | -7/Factory | Lost 3 allies 13497 | -7/Factory | Lost 3 allies 13497 | -7/Factory | System corruption reached 10% 13880 | -7/Factory | Garrison activated, responded to threat 14061 | -7/Factory | Lost 3 parts (3n) 14075 | -7/Factory | Core integrity fell below 50% 14333 | -7/Factory | Build established: Mutant 14890 | -7/Factory | Discovered new exit (range 13) 15037 | -7/Factory | Fabricated Hvy. Treads? 15138 | -7/Factory | Lost 3 parts (2n1u) 15200 | -7/Factory | Build established: Bothacker-Mutant 15299 | -7/Factory | Discovered new exit (range 9) 15940 | -7/Factory | Identified exit to Garrison 15953 | -7/Factory | Entered Garrison 15955 | -7/Garrison | Triggered checkpoint 15992 | -7/Garrison | Rescued a captive Derelict 16140 | -7/Garrison | Garrison Relay disabled 16305 | -7/Garrison | Triggered checkpoint 16344 | -7/Garrison | Core integrity fell below 20% 16367 | -7/Garrison | Destroyed 9 combat bots 16373 | -7/Garrison | Lost 3 parts (3u) 16385 | -7/Garrison | Triggered checkpoint 16605 | -7/Garrison | Triggered checkpoint 16618 | -7/Garrison | Garrison Relay disabled 16652 | -7/Garrison | Found embedded Infiltrators 16684 | -7/Garrison | Build established: Mutant 16709 | -7/Garrison | Triggered checkpoint 16730 | -7/Garrison | Discovered new exit (range 15) 17054 | -7/Garrison | Discovered new exit (range 48) 17054 | -7/Garrison | Discovered new exit (range 19) 17054 | -7/Garrison | Discovered new exit (range 58) 17141 | -7/Garrison | Triggered checkpoint 17148 | -7/Garrison | Garrison Relay disabled 17179 | -7/Garrison | Expanded RIF knowledge: Zone Cloak 17286 | -7/Garrison | Spotted B-75 Beast 17306 | -7/Garrison | Entered Factory 17306 | -6/Factory | Evolved 2 slots: Utility x2 17337 | -6/Factory | Lost 3 allies 17656 | -6/Factory | First assault squad dispatched 18067 | -6/Factory | Core integrity fell below 50% 18076 | -6/Factory | Core integrity fell below 20% 18097 | -6/Factory | Lost 7 parts (1p2n2u2w) 18292 | -6/Factory | Spotted B-75 Beast 18432 | -6/Factory | Identified exit to Garrison 18432 | -6/Factory | Entered Garrison 18442 | -6/Garrison | Expanded RIF knowledge: Command Fork 18470 | -6/Garrison | Triggered checkpoint 18728 | -6/Garrison | Garrison Relay disabled 18787 | -6/Garrison | Found embedded Infiltrators 19573 | -6/Garrison | Expanded RIF knowledge: Alert ID Control 19692 | -6/Garrison | Triggered checkpoint 19709 | -6/Garrison | Discovered new exit (range 10) 20035 | -6/Garrison | Entered Factory 20035 | -5/Factory | Accompanied by 8 allies 20035 | -5/Factory | Evolved 2 slots: Utility x2 20182 | -5/Factory | Build established: Commander-Mutant 20335 | -5/Factory | First assault squad dispatched 20440 | -5/Factory | Identified exit to Garrison 20442 | -5/Factory | Entered Garrison 20442 | -5/Garrison | Accompanied by 4 allies 20563 | -5/Garrison | Lost 4 allies 20596 | -5/Garrison | Triggered checkpoint 20643 | -5/Garrison | Garrison Relay disabled 20832 | -5/Garrison | Build established: Mutant 21182 | -5/Garrison | Triggered checkpoint 21250 | -5/Garrison | Lost 3 parts (1p1n1u) 21352 | -5/Garrison | Lost 6 parts (3n1u2w) 21407 | -5/Garrison | Expanded RIF knowledge: Robot Detection 21475 | -5/Garrison | Discovered new exit (range 10) 21547 | -5/Garrison | Spotted B-75 Beast 21633 | -5/Garrison | Lost 4 parts (1n3u) 21679 | -5/Garrison | Destroyed B-75 Beast 21950 | -5/Garrison | Triggered checkpoint 22015 | -5/Garrison | Garrison Relay disabled 22464 | -5/Garrison | Rescued a captive Derelict 22470 | -5/Garrison | Rescued a captive Derelict 22564 | -5/Garrison | Destroyed 7 combat bots 22579 | -5/Garrison | Triggered checkpoint 22581 | -5/Garrison | Discovered new exit (range 13) 22801 | -5/Garrison | Entered Factory 23127 | -5/Factory | Build established: Botlord-Mutant 23172 | -5/Factory | Discovered new exit (range 12) 23401 | -5/Factory | First assault squad dispatched 23433 | -5/Factory | Entered Extension 23433 | -5/Extension | Accompanied by 2 allies 23554 | -5/Extension | Rescued a captive Derelict 24712 | -5/Extension | Rescued a captive Derelict 24867 | -5/Extension | Rescued a captive Derelict 24868 | -5/Extension | Rescued a captive Derelict 25175 | -5/Extension | Spotted B-75 Beast 25188 | -5/Extension | Allies destroyed B-75 Beast 25289 | -5/Extension | Spotted B-75 Beast 25306 | -5/Extension | Allies destroyed B-75 Beast 25623 | -5/Extension | Discovered new exit (range 16) 25625 | -5/Extension | Discovered new exit (range 15) 25917 | -5/Extension | Rescued A7 26249 | -5/Extension | Rescued a captive Derelict 26275 | -5/Extension | Build established: Commander-Mutant 26291 | -5/Extension | Central database locked down 26703 | -5/Extension | Entered Cetus 26703 | -5/Cetus | Accompanied by 21 allies (A7) 26708 | -5/Cetus | Acquired a Cetus Manufacturing Module code from A7 26723 | -5/Cetus | Spotted Cetus Guard 26723 | -5/Cetus | Spotted Cetus Guard 26729 | -5/Cetus | Spotted Cetus Guard 26729 | -5/Cetus | Spotted Cetus Guard 26738 | -5/Cetus | Allies destroyed Cetus Guard 26738 | -5/Cetus | Destroyed Cetus Guard 26745 | -5/Cetus | Destroyed Cetus Guard 26748 | -5/Cetus | Allies destroyed Cetus Guard 26769 | -5/Cetus | Lost 7 allies 26904 | -5/Cetus | Started Cetus Manufacturing Module 26922 | -5/Cetus | Escorted A7 to Cetus Mainframe 26929 | -5/Cetus | Manufactured an Enhanced Grunt 26954 | -5/Cetus | Manufactured an Enhanced Grunt 26979 | -5/Cetus | Manufactured an Enhanced Grunt 27004 | -5/Cetus | Manufactured an Enhanced Grunt 27029 | -5/Cetus | Manufactured an Enhanced Grunt 27098 | -5/Cetus | Discovered new exit (range 15) 27127 | -5/Cetus | Discovered new exit (range 27) 27134 | -5/Cetus | Spotted Cetus Guard 27135 | -5/Cetus | Spotted Cetus Guard 27140 | -5/Cetus | Spotted Cetus Guard 27140 | -5/Cetus | Spotted Cetus Guard 27147 | -5/Cetus | Allies destroyed Cetus Guard 27151 | -5/Cetus | Allies destroyed Cetus Guard 27151 | -5/Cetus | Allies destroyed Cetus Guard 27154 | -5/Cetus | Allies destroyed Cetus Guard 27188 | -5/Cetus | Met Revision 17 27389 | -5/Cetus | Found Exp. Thermal Shield 27466 | -5/Cetus | Entered Archives 27466 | -5/Archives | Accompanied by 18 allies (A7) 27471 | -5/Archives | Received a hacking code to weaken MAIN.C 27511 | -5/Archives | Discovered new exit (range 16) 27526 | -5/Archives | Discovered new exit (range 15) 27530 | -5/Archives | Lost 4 allies 27698 | -5/Archives | Entered Hub_04(d) 27698 | -5/Hub_04(d) | Accompanied by 13 allies 27745 | -5/Hub_04(d) | Discovered new exit (range 18) 27748 | -5/Hub_04(d) | Build established: Botlord-Mutant 27756 | -5/Hub_04(d) | Identified exit to Factory 28186 | -5/Hub_04(d) | Discovered exit to Factory (range 3) 28202 | -5/Hub_04(d) | Identified exit to Garrison 28207 | -5/Hub_04(d) | Discovered exit to Factory (range 22) 29261 | -5/Hub_04(d) | Discovered exit to Factory (range 7) 30177 | -5/Hub_04(d) | Network Hub disabled 30196 | -5/Hub_04(d) | Spotted Lightning 30196 | -5/Hub_04(d) | Spotted Lightning 30196 | -5/Hub_04(d) | Spotted Lightning 30202 | -5/Hub_04(d) | Garrison activated, responded to threat 30221 | -5/Hub_04(d) | Core integrity fell below 50% 30230 | -5/Hub_04(d) | Entered Garrison 30257 | -5/Garrison | Lost 9 allies 30258 | -5/Garrison | Spotted B-90 Cyclops 30259 | -5/Garrison | Spotted B-86 Titan 30278 | -5/Garrison | Triggered checkpoint 30346 | -5/Garrison | Garrison Relay disabled 30912 | -5/Garrison | Triggered checkpoint 31186 | -5/Garrison | Triggered checkpoint 31229 | -5/Garrison | Garrison Relay disabled 31292 | -5/Garrison | Discovered exit to Factory (range 12) 31390 | -5/Garrison | Triggered checkpoint 31804 | -5/Garrison | Triggered checkpoint 31966 | -5/Garrison | Discovered exit to Factory (range 10) 32025 | -5/Garrison | Expanded RIF knowledge: Structural Interface 32098 | -5/Garrison | Found Adv. Force Booster 32182 | -5/Garrison | Triggered checkpoint 32606 | -5/Garrison | Triggered checkpoint 32838 | -5/Garrison | Garrison Relay disabled 33053 | -5/Garrison | Discovered exit to Factory (range 14) 33146 | -5/Garrison | Found embedded Infiltrators 33211 | -5/Garrison | Entered Factory 33211 | -4/Factory | Accompanied by 6 allies 33211 | -4/Factory | Evolved 2 slots: Utility x2 33255 | -4/Factory | Spotted B-86 Titan 33306 | -4/Factory | Lost 6 allies 33586 | -4/Factory | Discovered new exit (range 146) 34057 | -4/Factory | System corruption reached 10% 34310 | -4/Factory | Identified exit to Garrison 34311 | -4/Factory | Entered Garrison 34504 | -4/Garrison | Garrison Relay disabled 34537 | -4/Garrison | Triggered checkpoint 34700 | -4/Garrison | Expanded RIF knowledge: Program Shield 34919 | -4/Garrison | Crushed by falling debris 35021 | -4/Garrison | Triggered checkpoint 35156 | -4/Garrison | Expanded RIF knowledge: Signal Jamming 35228 | -4/Garrison | Garrison Relay disabled 35252 | -4/Garrison | Garrison Relay disabled 35329 | -4/Garrison | Garrison Relay disabled 35449 | -4/Garrison | Garrison Relay disabled 35656 | -4/Garrison | Discovered new exit (range 11) 35714 | -4/Garrison | Garrison Relay disabled 35979 | -4/Garrison | Spotted B-86 Titan 36025 | -4/Garrison | Lost 5 allies 36155 | -4/Garrison | Entered Factory 36632 | -4/Factory | Discovered new exit (range 28) 36668 | -4/Factory | Cargo convoy interrupted 36718 | -4/Factory | Core integrity fell below 50% 36750 | -4/Factory | Core integrity fell below 20% 36759 | -4/Factory | Self-destructed Last Messages --------------- 36748_ Slug penetrates Wall. 36749_ Penetrated by Slug. 36749_ Slug penetrates Subcomponent Replicator. 36751_ Slug penetrates Wall. 36751_ U-05 Engineer builds a Wall. 36753_ Slug penetrates Wall. 36753_ Penetrated by Slug. 36753_ Enh. Quantum Rifle destroyed. 36753_ Relay Coupler [Sentry] destroyed. 36754_ Slug penetrates Wall. 36754_ Penetrated by Slug. 36754_ Enh. Nova Cannon destroyed. 36755_ U-05 Engineer lays Concrete. 36755_ HV Slug penetrates X-82 Rainmaker. 36756_ Penetrated by Slug. 36756_ U-05 Engineer lays Concrete. 36757_ W-44 Eye distress signal jammed. 36757_ HV Slug penetrates X-82 Rainmaker. 36758_ U-05 Engineer builds a Wall. 36758_ W-44 Eye distress signal jammed. Map ----- +----------------------------------------------------+ | #?????????# ???????? | | #?????????# ????????? | | #?????????# ????????? | | #?????????#% ###+######### ######### ?????????? | | #?????????# #?????????????#??????????????????? | | #?????????# #????????????????????????????????? | | ########### #????????????????????????????????? | | #] !!! !# #????????????????????????????????? | | # !!! # #????????????????????????????????? | | # ! ! # #????????????????????????????????? | | # # #????????????????????????????????? | | # """ """ # #????????????????????????????????? | | # """ """ # #????????????????????????????????? | | # """ """ # #????????????????????????????????? | | #%!% # #???????????? #??????????????????? | | #########+# ############# ##??????????######## | | # T% % ??????????? A | | # ^ ?????????????# k#? | | # "" """ ??????????????# #? | | # """""" ^ ???????????????# #? | | # """""" ???????????????# #? | | # "" "" ## ### ##+#####???????#+##+## # | | # ! #???????# + | | # """"" #???????# # | | # h = ######### !! tR#? | | # !=!h x % ! @ ; w ! ##? | | + = !%%# % # " ###### #?? | | # % * " =#u " #????# "" "" k/ | | # =[ # # #????# ""F"" # | | # * # %# #????# """ #?? | | == =*= # ###########????# #?? | | "%!%%!=* # # # ### ##????????# #?? | | =!!%! = ######???##?????????# ###BB#k #?? | | =%%%=* #????????????######## #?#BB# t#?? | | "%%!! #????????????+ #?#### #?? | | """ #????????????##### #######????? ?? | | #????????????????# #??????????? ? | | #????????????????# #??????????? ? | | !! #????????????????# #??????????? ? | | !! +????????????????# #??????????? ? | | # ??????????????? #???????????? ???? | | #????????????????# #????????????????? | | ### ### #????????????????# #????????????????? | | ??# #?# #????????????????# #????????????????? | | ??####?# +????????????????# #????????????????? | | ???????? #????????????????# #????????????????? | | ???????? #????????????????# #????????????????? | | ???????? #???????????????? ????????????????? | | ???????? #????????????????!< ????????????????? | | ????????##???????????????????? ????????????????? | +----------------------------------------------------+ Best States ------------- Heat Dissipation 62 Energy Generation 25 Energy Capacity 350 Matter Stores 300 Matter Capacity 300 Sight Range 20 Terrain Scan Density 10 Jamming Range 16 Cloak Strength 4 Armor Coverage 1200 Resistance: KI 30 Resistance: TH 30 Core Shielding 30 Utility Shielding 66 Evasion (%) 44 Targeting Accuracy 8 Recoil Reduction 4 Offensive Hacking 12 Defensive Hacking 10 Relay Coupler Types 6 Relay Coupler Value 149 Authchip Count 3 Trap Extractor Capacity 4 Item Schematics ----------------- Huge Storage Unit | -8/Materials | Scanalyzed Rocket Launcher | -8/Materials | Scanalyzed Hvy. Treads | -8/Materials | Scanalyzed Arm. Medium Treads | -8/Materials | Scanalyzed Adv. Treads | -8/Materials | Scanalyzed Imp. Transmission Jammer | -8/Materials | Scanalyzed Adv. Cooling System | -7/Factory | Scanalyzed Robot Schematics ------------------ P-60 Hacker | -5/Extension | Hacked M-13 Machinist | -5/Hub_04(d) | Hacked Fabricated ------------ Hvy. Treads | x2 | -7/Factory Alien Tech Used ----------------- None Achievements -------------- Short-term Sacrifices Challenges ------------ None Game ------ Seed CarbideAnalysisKit Manual? 0 Play Time 08:27:42 Cumulative 287.2 hours Start 2024.08.04 @ 16:23:27 End 2024.08.05 @ 21:15:15 Sessions 5 Manual Loads 0 Difficulty Rogue Special Mode None Game No. 105 Rogue 103 Adventurer 0 Explorer 2 Win Type - Total 7 Types 5/0/1/1/0/0/0/0/0 Lore% 81 Gallery% 83 Achievement% 71 Wizard Run 0 Options --------- Layout 2 ASCII 0 Keyboard 0 Movement Numpad Keybinds 0 Fullscreen 1 Font 24/Smallcaps Map View 50x44 Zoom Use 0% Tactical HUD 1 Map Filters NONE Filters NONE Steam 0 RUN: 9b604f11-22b1-428b-93e1-c2e69c0f057f